fUSD/lending_fUSD_20240827
["ID","MTS","AMOUNT","RATE_DAILY","PERIOD"]
[336280400,1724755847811,-233.06319436,0.00010958,2]
[336280402,1724755847821,-500.0,0.00010958,2]
[336280404,1724755847831,-21944.32,0.00010958,2]
[336280405,1724755847843,-21944.32,0.00010958,2]
[336280406,1724755847862,-21944.32,0.00010958,2]
[336280407,1724755847872,-500.0,0.00010958,2]
[336280408,1724755847882,-500.0,0.00010958,2]
[336280409,1724755847892,-622.2,0.00010958,2]
[336280410,1724755847901,-500.0,0.00010958,2]
[336280411,1724755847911,-685.09,0.00010958,2]
[336280412,1724755847921,-685.09,0.00010958,2]
[336280413,1724755847931,-500.0,0.00010958,2]
[336280414,1724755847940,-500.0,0.00010958,2]
[336280415,1724755847950,-685.09,0.00010958,2]
[336280416,1724755847960,-500.0,0.00010958,2]
[336280417,1724755847970,-500.0,0.00010958,2]
[336280418,1724755847980,-500.0,0.00010958,2]
[336280421,1724755847990,-1938.8,0.00010958,2]
[336280422,1724755848000,-1938.8,0.00010958,2]
[336280424,1724755848010,-1938.8,0.00010958,2]
[336280427,1724755848021,-634.0,0.00010958,2]
[336280429,1724755848031,-634.0,0.00010958,2]
[336280431,1724755848041,-634.0,0.00010958,2]
[336280433,1724755848051,-617.6,0.00010958,2]
[336280435,1724755848062,-500.0,0.00010958,2]
[336280437,1724755848071,-617.6,0.00010958,2]
[336280439,1724755848081,-500.0,0.00010958,2]
[336280441,1724755848096,-617.6,0.00010958,2]
[336280443,1724755848106,-500.0,0.00010958,2]
[336280445,1724755848116,-617.6,0.00010958,2]
[336280447,1724755848125,-989.47,0.00010958,2]
[336280449,1724755848136,-989.47,0.00010958,2]
[336280451,1724755848145,-955.52,0.00010958,2]
[336280453,1724755848156,-989.47,0.00010958,2]
[336280455,1724755848166,-955.52,0.00010958,2]
[336280457,1724755848176,-955.52,0.00010958,2]
[336280459,1724755848185,-500.0,0.00010958,2]
[336280461,1724755848196,-500.0,0.00010958,2]
[336280463,1724755848206,-500.0,0.00010958,2]
[336280465,1724755848216,-981.39,0.00010958,2]
[336280467,1724755848227,-981.39,0.00010958,2]
[336280469,1724755848238,-981.39,0.00010958,2]
[336280472,1724755848248,-500.0,0.00010958,2]
[336280474,1724755848259,-500.0,0.00010958,2]
[336280476,1724755848269,-500.0,0.00010958,2]
[336280478,1724755848281,-500.0,0.00010958,2]
[336280480,1724755848294,-500.0,0.00010958,2]
[336280482,1724755848305,-152.54,0.00010959,2]
[336280484,1724755848315,-250.0,0.00010959,2]
[336280486,1724755848326,-162.245,0.00010966,2]
[336280488,1724755848337,-500.0,0.00010973,2]
[336280490,1724755848360,-639.48,0.00010977,2]
[336280492,1724755848370,-500.0,0.00010977,2]
[336280494,1724755848380,-500.0,0.00010977,2]
[336280496,1724755848390,-335.54,0.00010977,2]
[336280498,1724755848401,-879.49,0.00010977,2]
[336280501,1724755848411,-500.0,0.00010977,2]
[336280502,1724755848421,-631.51,0.00010977,2]
[336280505,1724755848432,-500.0,0.00010977,2]
[336280507,1724755848443,-500.0,0.00010978,2]
[336280509,1724755848453,-7968.99,0.00010984,2]
[336280511,1724755848463,-500.0,0.00010984,2]
[336280513,1724755848473,-947.01,0.00010984,2]
[336280515,1724755848483,-500.0,0.00010984,2]
[336280517,1724755848494,-500.0,0.00010984,2]
[336280519,1724755848505,-1287.3,0.00010984,2]
[336280521,1724755848516,-7631.15,0.00010984,2]
[336280523,1724755848527,-7713.89,0.00010984,2]
[336280526,1724755848538,-526.25,0.00010984,2]
[336280528,1724755848548,-505.88,0.00010984,2]
[336280530,1724755848558,-500.0,0.00010984,2]
[336280532,1724755848568,-500.0,0.00010984,2]
[336280534,1724755848578,-1654.88,0.00010985,2]
[336280536,1724755848588,-500.0,0.00010986,2]
[336280538,1724755848599,-442.43,0.00010986,2]
[336280540,1724755848609,-879.49,0.00010986,2]
[336280542,1724755848619,-500.0,0.00010986,2]
[336280544,1724755848629,-631.51,0.00010986,2]
[336280546,1724755848640,-500.0,0.00010986,2]
[336280548,1724755848650,-12100.73,0.00010986,2]
[336280550,1724755848661,-500.0,0.00010986,2]
[336280552,1724755848671,-1386.53,0.00010986,2]
[336280554,1724755848682,-500.0,0.00010986,2]
[336280557,1724755848692,-564.23,0.00010986,2]
[336280559,1724755848702,-500.0,0.00010986,2]
[336280561,1724755848713,-500.0,0.00010986,2]
[336280563,1724755848723,-1703.4,0.00010986,2]
[336280565,1724755848734,-613.54,0.00010986,2]
[336280567,1724755848746,-500.0,0.00010986,2]
[336280569,1724755848757,-978.45,0.00010986,2]
[336280571,1724755848767,-21944.32,0.00010986,2]
[336280574,1724755848778,-1938.8,0.00010986,2]
[336280576,1724755848789,-634.0,0.00010986,2]
[336280578,1724755848799,-617.49293627,0.00010986,2]
[336280580,1724755848810,-955.52,0.00010986,2]
[336280582,1724755848820,-981.39,0.00010986,2]
[336280584,1724755848831,-71719.0,0.00010986,2]
[336280586,1724755848844,-883.41,0.00010987,2]
[336280588,1724755848855,-500.0,0.00010987,2]
[336280590,1724755848866,-540.83,0.00010987,2]
[336280593,1724755848877,-526.83,0.00010987,2]
[336280595,1724755848888,-718.2,0.00010987,2]
[336280597,1724755848899,-598.64,0.00010987,2]
[336280599,1724755848910,-526.38886865,0.00010987,2]
[336280601,1724755848921,-592.96,0.00010987,2]
[336280604,1724755848935,-500.0,0.00010987,2]
[336280606,1724755848949,-1264.39,0.00010987,2]
[336280608,1724755848963,-500.0,0.00010987,2]
[336280611,1724755848976,-2133.45,0.00010987,2]
[336280613,1724755848989,-500.0,0.00010987,2]
[336280615,1724755849000,-4203.59,0.00010987,2]
[336280617,1724755849011,-500.0,0.00010987,2]
[336280620,1724755849024,-500.0,0.00010987,2]
[336280622,1724755849036,-500.0,0.00010987,2]
[336280624,1724755849048,-500.0,0.00010987,2]
[336280627,1724755849061,-585.60830713,0.00010987,2]
[336280629,1724755849074,-1762.3,0.00010987,2]
[336280631,1724755849087,-500.0,0.00010987,2]
[336280634,1724755849100,-500.0,0.00010987,2]
[336280636,1724755849112,-500.0,0.00010987,2]
[336280638,1724755849125,-500.0,0.00010987,2]
[336280641,1724755849137,-500.0,0.00010987,2]
[336280643,1724755849149,-3916.21,0.00010987,2]
[336280645,1724755849161,-1103.19,0.00010987,2]
[336280648,1724755849173,-766.83,0.00010987,2]
[336280650,1724755849185,-550.93,0.00010987,2]
[336280652,1724755849197,-500.0,0.00010987,2]
[336280654,1724755849209,-673.65,0.00010987,2]
[336280657,1724755849220,-500.0,0.00010987,2]
[336280659,1724755849230,-500.0,0.00010988,2]
[336280661,1724755849241,-500.0,0.00010988,2]
[336280663,1724755849255,-500.0,0.00010988,2]
[336280665,1724755849266,-500.0,0.00010988,2]
[336280667,1724755849278,-500.0,0.00010988,2]
[336280670,1724755849293,-1847.78,0.00010988,2]
[336280672,1724755849305,-500.0,0.00010988,2]
[336280674,1724755849316,-500.0,0.00010988,2]
[336280676,1724755849328,-500.0,0.00010988,2]
[336280679,1724755849342,-500.0,0.00010988,2]
[336280681,1724755849356,-500.0,0.00010988,2]
[336280683,1724755849371,-500.0,0.00010988,2]
[336280686,1724755849382,-879.49,0.00010988,2]
[336280688,1724755849392,-171.94,0.00010988,2]
[336280690,1724755849402,-500.0,0.00010988,2]
[336280692,1724755849412,-500.0,0.00010988,2]
[336280694,1724755849423,-562.05,0.00010988,2]
[336280696,1724755849435,-500.0,0.00010988,2]
[336280698,1724755849448,-500.0,0.00010988,2]
[336280701,1724755849461,-500.0,0.00010988,2]
[336280703,1724755849471,-500.0,0.00010988,2]
[336280705,1724755849482,-500.0,0.00010988,2]
[336280707,1724755849495,-631.51,0.00010988,2]
[336280709,1724755849506,-500.0,0.00010988,2]
[336280712,1724755849519,-500.0,0.00010988,2]
[336280714,1724755849530,-500.0,0.00010988,2]
[336280716,1724755849541,-500.0,0.00010988,2]
[336280718,1724755849552,-500.0,0.00010988,2]
[336280720,1724755849562,-601.17,0.00010988,2]
[336280722,1724755849573,-500.0,0.00010988,2]
[336280724,1724755849583,-835.14,0.00010988,2]
[336280727,1724755849595,-500.0,0.00010988,2]
[336280729,1724755849606,-500.0,0.00010988,2]
[336280731,1724755849618,-500.0,0.00010988,2]
[336280733,1724755849629,-518.89938639,0.00010988,2]
[336280735,1724755849641,-500.0,0.00010988,2]
[336280738,1724755849653,-2866.73,0.00010988,2]
[336280740,1724755849665,-500.0,0.00010988,2]
[336280742,1724755849676,-500.0,0.00010988,2]
[336280744,1724755849687,-500.0,0.00010988,2]
[336280746,1724755849698,-1294.15,0.00010988,2]
[336280748,1724755849709,-500.0,0.00010988,2]
[336280751,1724755849720,-500.0,0.00010988,2]
[336280753,1724755849731,-500.0,0.00010988,2]
[336280755,1724755849742,-500.0,0.00010988,2]
[336280757,1724755849753,-573.55,0.00010988,2]
[336280759,1724755849764,-1809.53,0.00010988,2]
[336280761,1724755849776,-500.0,0.00010988,2]
[336280763,1724755849787,-617.6,0.00010988,2]
[336280766,1724755849797,-500.0,0.00010989,2]
[336280768,1724755849808,-500.0,0.0001099,2]
[336280770,1724755849819,-475.7,0.0001099,2]
[336280772,1724755849829,-500.0,0.0001099,2]
[336280774,1724755849840,-534.75,0.0001099,2]
[336280776,1724755849851,-500.0,0.0001099,2]
[336280778,1724755849862,-1582.59,0.0001099,2]
[336280780,1724755849873,-723.65,0.0001099,2]
[336280782,1724755849884,-1823.75,0.0001099,2]
[336280784,1724755849895,-428.93,0.0001099,2]
[336280787,1724755849906,-500.0,0.0001099,2]
[336280789,1724755849918,-607.07,0.0001099,2]
[336280791,1724755849928,-1795.12,0.0001099,2]
[336280793,1724755849939,-848.4,0.0001099,2]
[336280795,1724755849952,-779.58,0.0001099,2]
[336280797,1724755849963,-1285.99,0.0001099,2]
[336280800,1724755849974,-2261.02,0.0001099,2]
[336280802,1724755849985,-567.06,0.0001099,2]
[336280804,1724755849995,-846.92,0.0001099,2]
[336280806,1724755850006,-500.0,0.0001099,2]
[336280808,1724755850017,-789.46,0.0001099,2]
[336280810,1724755850029,-500.0,0.0001099,2]
[336280812,1724755850040,-2490.13,0.0001099,2]
[336280814,1724755850051,-685.09,0.0001099,2]
[336280817,1724755850064,-989.47,0.0001099,2]
[336280819,1724755850075,-481.62,0.00010991,2]
[336280821,1724755850086,-879.49,0.00010991,2]
[336280823,1724755850098,-500.0,0.00010991,2]
[336280825,1724755850109,-631.51,0.00010991,2]
[336280827,1724755850120,-626.97,0.00010991,2]
[336280830,1724755850131,-12100.73,0.00010991,2]
[336280832,1724755850142,-500.0,0.00010991,2]
[336280834,1724755850153,-1386.53,0.00010991,2]
[336280836,1724755850164,-500.0,0.00010991,2]
[336280838,1724755850175,-564.23,0.00010991,2]
[336280840,1724755850186,-500.0,0.00010991,2]
[336280842,1724755850197,-500.0,0.00010991,2]
[336280844,1724755850208,-1703.4,0.00010991,2]
[336280847,1724755850219,-613.54,0.00010991,2]
[336280849,1724755850230,-500.0,0.00010991,2]
[336280851,1724755850243,-978.45,0.00010991,2]
[336280853,1724755850253,-21944.32,0.00010991,2]
[336280855,1724755850265,-1938.8,0.00010991,2]
[336280857,1724755850275,-634.0,0.00010991,2]
[336280860,1724755850292,-955.52,0.00010991,2]
[336280862,1724755850302,-981.39,0.00010991,2]
[336280864,1724755850313,-500.0,0.00010992,2]
[336280866,1724755850323,-500.0,0.00010992,2]
[336280868,1724755850334,-500.0,0.00010992,2]
[336280870,1724755850345,-500.0,0.00010992,2]
[336280872,1724755850356,-500.0,0.00010992,2]
[336280874,1724755850367,-1847.78,0.00010992,2]
[336280876,1724755850378,-500.0,0.00010992,2]
[336280878,1724755850389,-500.0,0.00010992,2]
[336280880,1724755850400,-500.0,0.00010992,2]
[336280883,1724755850411,-692.26609568,0.00010992,2]
[336280885,1724755850422,-500.0,0.00010992,2]
[336280887,1724755850433,-500.0,0.00010992,2]
[336280889,1724755850444,-500.0,0.00010992,2]
[336280891,1724755850454,-171.94,0.00010992,2]
[336280893,1724755850466,-500.0,0.00010992,2]
[336280895,1724755850476,-562.05,0.00010992,2]
[336280897,1724755850487,-500.0,0.00010992,2]
[336280899,1724755850498,-500.0,0.00010992,2]
[336280901,1724755850509,-500.0,0.00010992,2]
[336280904,1724755850520,-500.0,0.00010992,2]
[336280906,1724755850530,-500.0,0.00010992,2]
[336280908,1724755850541,-883.41,0.00010992,2]
[336280910,1724755850552,-500.0,0.00010992,2]
[336280912,1724755850563,-500.0,0.00010992,2]
[336280914,1724755850574,-500.0,0.00010992,2]
[336280916,1724755850585,-500.0,0.00010992,2]
[336280919,1724755850597,-540.83,0.00010992,2]
[336280921,1724755850608,-7968.99,0.00010992,2]
[336280923,1724755850618,-248.9769412,0.00010992,2]
[336280925,1724755850629,-500.0,0.00010992,2]
[336280927,1724755850639,-526.83,0.00010992,2]
[336280929,1724755850650,-718.2,0.00010992,2]
[336280931,1724755850660,-1654.88,0.00010992,2]
[336280933,1724755850671,-598.64,0.00010992,2]
[336280935,1724755850681,-592.96,0.00010992,2]
[336280937,1724755850692,-500.0,0.00010992,2]
[336280939,1724755850702,-1264.39,0.00010992,2]
[336280942,1724755850713,-601.17,0.00010992,2]
[336280944,1724755850724,-500.0,0.00010992,2]
[336280946,1724755850734,-835.14,0.00010992,2]
[336280948,1724755850744,-500.0,0.00010992,2]
[336280950,1724755850754,-500.0,0.00010992,2]
[336280952,1724755850765,-500.0,0.00010992,2]
[336280954,1724755850776,-947.01,0.00010992,2]
[336280956,1724755850787,-2133.45,0.00010992,2]
[336280958,1724755850797,-81685.1901064,0.00010992,2]
[336280960,1724755850808,-4203.59,0.00010992,2]
[336280962,1724755850819,-500.0,0.00010992,2]
[336280964,1724755850830,-500.0,0.00010992,2]
[336280966,1724755850840,-500.0,0.00010992,2]
[336280969,1724755850851,-500.0,0.00010992,2]
[336280971,1724755850861,-500.0,0.00010992,2]
[336280973,1724755850872,-500.0,0.00010992,2]
[336280975,1724755850882,-500.0,0.00010992,2]
[336280977,1724755850893,-500.0,0.00010992,2]
[336280979,1724755850903,-500.0,0.00010992,2]
[336280981,1724755850914,-1762.3,0.00010992,2]
[336280983,1724755850924,-1287.3,0.00010992,2]
[336280985,1724755850934,-500.0,0.00010992,2]
[336280987,1724755850945,-2866.73,0.00010992,2]
[336281013,1724755850955,-500.0,0.00010992,2]
[336281016,1724755851202,-7631.15,0.00010992,2]
[336281019,1724755851215,-500.0,0.00010992,2]
[336281021,1724755851224,-500.0,0.00010992,2]
[336281023,1724755851234,-500.0,0.00010992,2]
[336281025,1724755851243,-3916.21,0.00010992,2]
[336281027,1724755851252,-500.0,0.00010992,2]
[336281029,1724755851261,-7713.89,0.00010992,2]
[336281031,1724755851270,-1103.19,0.00010992,2]
[336281033,1724755851279,-500.0,0.00010992,2]
[336281035,1724755851293,-500.0,0.00010992,2]
[336281037,1724755851301,-766.83,0.00010992,2]
[336281039,1724755851310,-1294.15,0.00010992,2]
[336281041,1724755851319,-500.0,0.00010992,2]
[336281042,1724755851329,-500.0,0.00010992,2]
[336281044,1724755851338,-526.25,0.00010992,2]
[336281046,1724755851355,-500.0,0.00010992,2]
[336281048,1724755851368,-550.93,0.00010992,2]
[336281050,1724755851377,-500.0,0.00010992,2]
[336281052,1724755851386,-500.0,0.00010992,2]
[336281054,1724755851395,-573.55,0.00010992,2]
[336281056,1724755851404,-505.88,0.00010992,2]
[336281058,1724755851413,-673.65,0.00010992,2]
[336281060,1724755851422,-1809.53,0.00010992,2]
[336281062,1724755851431,-500.0,0.00010992,2]
[336281064,1724755851440,-500.0,0.00010992,2]
[336281066,1724755851450,-500.0,0.00010992,2]
[336281068,1724755851459,-617.6,0.00010992,2]
[336281070,1724755851468,-500.0,0.00010992,2]
[336281071,1724755851478,-879.49,0.00010993,2]
[336281072,1724755851487,-879.49,0.00010993,2]
[336281073,1724755851496,-879.49,0.00010993,2]
[336281074,1724755851505,-879.49,0.00010993,2]
[336281075,1724755851514,-879.7,0.00010993,2]
[336281076,1724755851523,-500.0,0.00010993,2]
[336281077,1724755851532,-500.0,0.00010993,2]
[336281078,1724755851544,-500.0,0.00010993,2]
[336281079,1724755851555,-500.0,0.00010993,2]
[336281080,1724755851564,-418.08,0.00010993,2]
[336281081,1724755851573,-631.51,0.00010993,2]
[336281082,1724755851582,-631.51,0.00010993,2]
[336281083,1724755851591,-631.51,0.00010993,2]
[336281084,1724755851600,-631.51,0.00010993,2]
[336281086,1724755851610,-631.7,0.00010993,2]
[336281088,1724755851619,-500.0,0.00010994,2]
[336281090,1724755851628,-500.0,0.00010994,2]
[336281092,1724755851639,-534.75,0.00010994,2]
[336281094,1724755851649,-500.0,0.00010994,2]
[336281096,1724755851659,-1582.59,0.00010994,2]
[336281098,1724755851667,-723.65,0.00010994,2]
[336281100,1724755851676,-1823.75,0.00010994,2]
[336281102,1724755851686,-500.0,0.00010994,2]
[336281104,1724755851695,-607.07,0.00010994,2]
[336281106,1724755851704,-1795.12,0.00010994,2]
[336281108,1724755851714,-848.4,0.00010994,2]
[336281110,1724755851723,-779.58,0.00010994,2]
[336281112,1724755851732,-1285.99,0.00010994,2]
[336281114,1724755851741,-2261.02,0.00010994,2]
[336281116,1724755851750,-567.06,0.00010994,2]
[336281118,1724755851764,-846.92,0.00010994,2]
[336281120,1724755851773,-500.0,0.00010994,2]
[336281122,1724755851782,-789.46,0.00010994,2]
[336281124,1724755851791,-500.0,0.00010994,2]
[336281126,1724755851800,-2490.13,0.00010994,2]
[336281128,1724755851810,-685.09,0.00010994,2]
[336281130,1724755851819,-989.47,0.00010994,2]
[336281132,1724755851828,-500.0,0.00010995,2]
[336281133,1724755851837,-1654.88,0.00010995,2]
[336281135,1724755851850,-322.83776905,0.00010995,2]
[336281137,1724755851859,-552.0,0.00010996,2]
[336281139,1724755851869,-322.83776905,0.00010996,2]
[336281141,1724755851878,-526.83,0.00010996,2]
[336281143,1724755851890,-598.64,0.00010996,2]
[336281145,1724755851899,-500.0,0.00010996,2]
[336281147,1724755851908,-2133.45,0.00010996,2]
[336281149,1724755851918,-4203.59,0.00010996,2]
[336281151,1724755851927,-500.0,0.00010996,2]
[336281154,1724755851937,-500.0,0.00010996,2]
[336281155,1724755851946,-1762.3,0.00010996,2]
[336281157,1724755851955,-12100.73,0.00010996,2]
[336281159,1724755851964,-500.0,0.00010996,2]
[336281161,1724755851974,-1386.53,0.00010996,2]
[336281163,1724755851983,-500.0,0.00010996,2]
[336281165,1724755851992,-564.23,0.00010996,2]
[336281167,1724755852001,-500.0,0.00010996,2]
[336281169,1724755852010,-500.0,0.00010996,2]
[336281171,1724755852020,-1703.4,0.00010996,2]
[336281173,1724755852030,-613.54,0.00010996,2]
[336281175,1724755852039,-500.0,0.00010996,2]
[336281177,1724755852048,-978.45,0.00010996,2]
[336281179,1724755852058,-21944.32,0.00010996,2]
[336281181,1724755852067,-1938.8,0.00010996,2]
[336281183,1724755852076,-634.0,0.00010996,2]
[336281185,1724755852086,-955.52,0.00010996,2]
[336281187,1724755852097,-981.39,0.00010996,2]
[336281189,1724755852106,-322.83776905,0.00010996,2]
[336281191,1724755852115,-500.0,0.00010997,2]
[336281193,1724755852124,-500.0,0.00010997,2]
[336281195,1724755852133,-500.0,0.00010997,2]
[336281197,1724755852142,-500.0,0.00010997,2]
[336281199,1724755852152,-1847.78,0.00010997,2]
[336281201,1724755852161,-500.0,0.00010997,2]
[336281203,1724755852171,-500.0,0.00010997,2]
[336281205,1724755852180,-500.0,0.00010997,2]
[336281207,1724755852189,-500.0,0.00010997,2]
[336281208,1724755852198,-500.0,0.00010997,2]
[336281210,1724755852207,-500.0,0.00010997,2]
[336281212,1724755852216,-171.94,0.00010997,2]
[336281214,1724755852225,-500.0,0.00010997,2]
[336281216,1724755852234,-562.05,0.00010997,2]
[336281218,1724755852246,-500.0,0.00010997,2]
[336281220,1724755852256,-500.0,0.00010997,2]
[336281222,1724755852265,-500.0,0.00010997,2]
[336281224,1724755852274,-500.0,0.00010997,2]
[336281226,1724755852286,-500.0,0.00010997,2]
[336281228,1724755852296,-883.41,0.00010997,2]
[336281230,1724755852305,-330.54764983,0.00010997,2]
[336281232,1724755852314,-243.213875,0.00010997,2]
[336281234,1724755852326,-500.0,0.00010997,2]
[336281236,1724755852335,-500.0,0.00010997,2]
[336281238,1724755852344,-500.0,0.00010997,2]
[336281240,1724755852354,-540.83,0.00010997,2]
[336281242,1724755852366,-7968.99,0.00010997,2]
[336281244,1724755852375,-500.0,0.00010997,2]
[336281246,1724755852384,-500.0,0.00010997,2]
[336281248,1724755852393,-718.2,0.00010997,2]
[336281250,1724755852402,-534.75,0.00010997,2]
[336281252,1724755852411,-592.96,0.00010997,2]
[336281254,1724755852421,-500.0,0.00010997,2]
[336281256,1724755852428,-1582.59,0.00010997,2]
[336281257,1724755852436,-1264.39,0.00010997,2]
[336281259,1724755852445,-601.17,0.00010997,2]
[336281261,1724755852453,-500.0,0.00010997,2]
[336281263,1724755852461,-723.65,0.00010997,2]
[336281265,1724755852468,-835.14,0.00010997,2]
[336281266,1724755852476,-1823.75,0.00010997,2]
[336281268,1724755852485,-500.0,0.00010997,2]
[336281270,1724755852497,-500.0,0.00010997,2]
[336281272,1724755852506,-500.0,0.00010997,2]
[336281274,1724755852515,-947.01,0.00010997,2]
[336281276,1724755852525,-500.0,0.00010997,2]
[336281278,1724755852534,-500.0,0.00010997,2]
[336281280,1724755852544,-607.07,0.00010997,2]
[336281282,1724755852553,-500.0,0.00010997,2]
[336281284,1724755852562,-500.0,0.00010997,2]
[336281286,1724755852572,-500.0,0.00010997,2]
[336281288,1724755852581,-1795.12,0.00010997,2]
[336281290,1724755852593,-500.0,0.00010997,2]
[336281292,1724755852603,-500.0,0.00010997,2]
[336281294,1724755852613,-848.4,0.00010997,2]
[336281296,1724755852622,-779.58,0.00010997,2]
[336281298,1724755852631,-500.0,0.00010997,2]
[336281300,1724755852641,-1285.99,0.00010997,2]
[336281302,1724755852650,-12100.73,0.00010997,2]
[336281304,1724755852659,-1287.3,0.00010997,2]
[336281306,1724755852669,-500.0,0.00010997,2]
[336281308,1724755852678,-2261.02,0.00010997,2]
[336281310,1724755852688,-500.0,0.00010997,2]
[336281312,1724755852698,-2866.73,0.00010997,2]
[336281314,1724755852707,-500.0,0.00010997,2]
[336281316,1724755852717,-7631.15,0.00010997,2]
[336281318,1724755852727,-500.0,0.00010997,2]
[336281319,1724755852736,-500.0,0.00010997,2]
[336281321,1724755852746,-500.0,0.00010997,2]
[336281323,1724755852757,-3916.21,0.00010997,2]
[336281325,1724755852768,-1386.53,0.00010997,2]
[336281327,1724755852778,-500.0,0.00010997,2]
[336281329,1724755852788,-7713.89,0.00010997,2]
[336281331,1724755852798,-1103.19,0.00010997,2]
[336281333,1724755852807,-567.06,0.00010997,2]
[336281335,1724755852817,-500.0,0.00010997,2]
[336281337,1724755852827,-500.0,0.00010997,2]
[336281339,1724755852837,-766.83,0.00010997,2]
[336281341,1724755852847,-500.0,0.00010997,2]
[336281343,1724755852857,-564.23,0.00010997,2]
[336281345,1724755852867,-1294.15,0.00010997,2]
[336281347,1724755852876,-500.0,0.00010997,2]
[336281349,1724755852885,-500.0,0.00010997,2]
[336281351,1724755852895,-526.25,0.00010997,2]
[336281353,1724755852904,-500.0,0.00010997,2]
[336281355,1724755852914,-500.0,0.00010997,2]
[336281357,1724755852923,-550.93,0.00010997,2]
[336281358,1724755852932,-846.92,0.00010997,2]
[336281360,1724755852941,-500.0,0.00010997,2]
[336281362,1724755852951,-500.0,0.00010997,2]
[336281364,1724755852960,-500.0,0.00010997,2]
[336281366,1724755852970,-573.55,0.00010997,2]
[336281368,1724755852979,-505.88,0.00010997,2]
[336281370,1724755852989,-500.0,0.00010997,2]
[336281372,1724755852998,-673.65,0.00010997,2]
[336281374,1724755853007,-789.46,0.00010997,2]
[336281376,1724755853017,-1703.4,0.00010997,2]
[336281378,1724755853027,-613.54,0.00010997,2]
[336281380,1724755853036,-500.0,0.00010997,2]
[336281382,1724755853045,-1809.53,0.00010997,2]
[336281384,1724755853055,-500.0,0.00010997,2]
[336281386,1724755853064,-978.45,0.00010997,2]
[336281388,1724755853073,-2490.13,0.00010997,2]
[336281390,1724755853082,-500.0,0.00010997,2]
[336281392,1724755853091,-21944.32,0.00010997,2]
[336281394,1724755853102,-685.09,0.00010997,2]
[336281396,1724755853111,-500.0,0.00010997,2]
[336281398,1724755853121,-500.0,0.00010997,2]
[336281400,1724755853131,-1938.8,0.00010997,2]
[336281402,1724755853141,-634.0,0.00010997,2]
[336281404,1724755853151,-617.6,0.00010997,2]
[336281406,1724755853160,-989.47,0.00010997,2]
[336281408,1724755853170,-955.52,0.00010997,2]
[336281410,1724755853178,-500.0,0.00010997,2]
[336281412,1724755853187,-981.39,0.00010997,2]
[336281414,1724755853196,-1614.18884525,0.00010997,2]
[336281415,1724755853205,-500.0,0.00010998,2]
[336281417,1724755853214,-500.0,0.00010998,2]
[336281419,1724755853224,-500.0,0.00010998,2]
[336281421,1724755853233,-500.0,0.00010998,2]
[336281423,1724755853244,-500.0,0.00010998,2]